[Event "Early-Titled-Tuesday-Blitz-April-23-2024"]
[Site "Chess.com"]
[Date "2024.04.23"]
[Round "1"]
[White "m_ezat"]
[Black "Naruna_Chan"]
[Result "1-0"]
[WhiteElo "2613"]
[BlackElo "2212"]
[TimeControl "180+1"]
[EndTime "8:06:12 PDT"]
[Termination "m_ezat won by resignation"]

1. d4 {[%clk 0:03:00.9]} 1... Nf6 {[%clk 0:02:59.1]} 2. c4 {[%clk 0:02:57]} 2...
e6 {[%clk 0:02:59.4]} 3. Nc3 {[%clk 0:02:56.8]} 3... b6 {[%clk 0:02:58.3]} 4. e4
{[%clk 0:02:56.3]} 4... Bb7 {[%clk 0:02:56.7]} 5. Bd3 {[%clk 0:02:56.2]} 5... d6
{[%clk 0:02:55.9]} 6. Nf3 {[%clk 0:02:55.1]} 6... Be7 {[%clk 0:02:56.5]} 7. O-O
{[%clk 0:02:49.4]} 7... Nbd7 {[%clk 0:02:55.9]} 8. Re1 {[%clk 0:02:42.8]} 8...
e5 {[%clk 0:02:56]} 9. d5 {[%clk 0:02:40.2]} 9... O-O {[%clk 0:02:55.3]} 10. Bg5
{[%clk 0:02:34]} 10... Nxd5 {[%clk 0:02:50]} 11. Nxd5 {[%clk 0:02:28.6]} 11...
Bxg5 {[%clk 0:02:49.4]} 12. Nxg5 {[%clk 0:02:25.3]} 12... Bxd5 {[%clk
0:02:39.5]} 13. Nxh7 {[%clk 0:02:25]} 13... Bxc4 {[%clk 0:02:31.3]} 14. Nxf8
{[%clk 0:02:24.5]} 14... Bxd3 {[%clk 0:02:19.1]} 15. Nxd7 {[%clk 0:02:24.2]}
15... Bb5 {[%clk 0:02:04]} 16. Nxe5 {[%clk 0:02:21]} 16... dxe5 {[%clk
0:02:04.9]} 17. Qxd8+ {[%clk 0:02:20.8]} 17... Rxd8 {[%clk 0:02:05.2]} 18. Red1
{[%clk 0:02:20.9]} 18... Re8 {[%clk 0:01:44.5]} 19. Rac1 {[%clk 0:02:20.1]}
19... c5 {[%clk 0:01:43.6]} 20. b3 {[%clk 0:02:19.2]} 20... g6 {[%clk
0:01:34.8]} 21. f3 {[%clk 0:02:14.6]} 21... Re7 {[%clk 0:01:17.2]} 22. Rd6
{[%clk 0:02:11.8]} 22... Kg7 {[%clk 0:01:11.1]} 23. a4 {[%clk 0:02:10.7]} 23...
Ba6 {[%clk 0:01:09.5]} 24. a5 {[%clk 0:02:10.6]} 24... Rb7 {[%clk 0:01:06.9]}
25. axb6 {[%clk 0:02:09.4]} 25... axb6 {[%clk 0:01:07.8]} 26. Rcd1 {[%clk
0:02:08]} 26... c4 {[%clk 0:01:05.7]} 27. bxc4 {[%clk 0:02:01.9]} 27... Bxc4
{[%clk 0:01:05.4]} 28. Rd7 {[%clk 0:02:02]} 28... Rb8 {[%clk 0:00:51.2]} 29. Rd8
{[%clk 0:02:01.7]} 29... Rxd8 {[%clk 0:00:48.2]} 30. Rxd8 {[%clk 0:02:01.3]}
30... b5 {[%clk 0:00:45.6]} 31. Rb8 {[%clk 0:01:58.7]} 31... f5 {[%clk
0:00:44.6]} 32. exf5 {[%clk 0:01:57]} 32... gxf5 {[%clk 0:00:44.7]} 33. Kf2
{[%clk 0:01:55.9]} 33... Kf6 {[%clk 0:00:44]} 34. g3 {[%clk 0:01:55.8]} 34...
Ke6 {[%clk 0:00:42.7]} 35. h4 {[%clk 0:01:55.3]} 35... Kf6 {[%clk 0:00:38.5]}
36. Ke3 {[%clk 0:01:54.3]} 36... Kg6 {[%clk 0:00:35.1]} 37. Rb6+ {[%clk
0:01:46.5]} 37... Kh5 {[%clk 0:00:34.7]} 38. Rf6 {[%clk 0:01:45.9]} 38... f4+
{[%clk 0:00:28.9]} 39. gxf4 {[%clk 0:01:45.3]} 39... Kxh4 {[%clk 0:00:24.2]} 40.
fxe5 {[%clk 0:01:43.5]} 40... b4 {[%clk 0:00:24.1]} 41. e6 {[%clk 0:01:37.7]}
41... Kg5 {[%clk 0:00:20.8]} 42. e7 {[%clk 0:01:33.8]} 42... Bb5 {[%clk
0:00:16.5]} 43. Rf8 {[%clk 0:01:30.1]} 43... b3 {[%clk 0:00:16.1]} 44. e8=Q
{[%clk 0:01:25.9]} 1-0

[Event "Early-Titled-Tuesday-Blitz-April-23-2024"]
[Site "Chess.com"]
[Date "2024.04.23"]
[Round "1"]
[White "ural58"]
[Black "DenLaz"]
[Result "0-1"]
[WhiteElo "2556"]
[BlackElo "3117"]
[TimeControl "180+1"]
[EndTime "8:06:13 PDT"]
[Termination "DenLaz won by resignation"]

1. e4 {[%clk 0:02:58.1]} 1... c5 {[%clk 0:03:00.6]} 2. b3 {[%clk 0:02:57.3]}
2... Nc6 {[%clk 0:02:56.3]} 3. Bb2 {[%clk 0:02:57.3]} 3... Nf6 {[%clk
0:02:56.6]} 4. e5 {[%clk 0:02:56.4]} 4... Nd5 {[%clk 0:02:55.1]} 5. Nf3 {[%clk
0:02:57]} 5... g6 {[%clk 0:02:46.4]} 6. Ng5 {[%clk 0:02:56]} 6... e6 {[%clk
0:02:32]} 7. Ne4 {[%clk 0:02:50.7]} 7... Bg7 {[%clk 0:02:31.7]} 8. c4 {[%clk
0:02:32.3]} 8... Nde7 {[%clk 0:02:12.5]} 9. Nd6+ {[%clk 0:02:29.1]} 9... Kf8
{[%clk 0:02:12.6]} 10. f4 {[%clk 0:02:29.1]} 10... Nf5 {[%clk 0:02:10.5]} 11.
Nxf5 {[%clk 0:02:24.3]} 11... exf5 {[%clk 0:02:11.4]} 12. Nc3 {[%clk 0:02:15.3]}
12... d6 {[%clk 0:02:08.3]} 13. exd6 {[%clk 0:02:13.3]} 13... Qxd6 {[%clk
0:02:08.2]} 14. g3 {[%clk 0:02:11.9]} 14... Bd7 {[%clk 0:02:00]} 15. Be2 {[%clk
0:02:11.3]} 15... Nd4 {[%clk 0:01:58.5]} 16. O-O {[%clk 0:02:09.1]} 16... Bc6
{[%clk 0:01:57.8]} 17. Re1 {[%clk 0:02:04]} 17... h5 {[%clk 0:01:50.7]} 18. h4
{[%clk 0:02:03.2]} 18... g5 {[%clk 0:01:45.7]} 19. Nb5 {[%clk 0:01:31.5]} 19...
Bxb5 {[%clk 0:01:44.1]} 20. cxb5 {[%clk 0:01:31]} 20... gxf4 {[%clk 0:01:44.3]}
21. Bc4 {[%clk 0:01:16.8]} 21... fxg3 {[%clk 0:01:34.2]} 22. Kg2 {[%clk
0:01:16.8]} 22... Qf4 {[%clk 0:01:30.5]} 23. Rf1 {[%clk 0:01:04.5]} 23... Qe4+
{[%clk 0:01:29.8]} 24. Kh3 {[%clk 0:00:58.9]} 24... Be5 {[%clk 0:01:21]} 25.
Bxd4 {[%clk 0:00:55.4]} 25... Bxd4 {[%clk 0:01:20.2]} 26. Rc1 {[%clk 0:00:50.1]}
26... g2 {[%clk 0:01:19]} 27. Re1 {[%clk 0:00:43.9]} 27... g1=Q {[%clk
0:01:09.8]} 28. Rxg1 {[%clk 0:00:42.3]} 28... Bxg1 {[%clk 0:01:10.1]} 29. Qxg1
{[%clk 0:00:42.3]} 29... Qg4+ {[%clk 0:01:10.8]} 30. Qxg4 {[%clk 0:00:41.8]}
30... hxg4+ {[%clk 0:01:11.5]} 31. Kg3 {[%clk 0:00:41.7]} 31... Rd8 {[%clk
0:01:12.2]} 32. d3 {[%clk 0:00:41.4]} 32... Kg7 {[%clk 0:01:10.8]} 33. Rf1
{[%clk 0:00:39.6]} 33... Kf6 {[%clk 0:01:11.1]} 34. a4 {[%clk 0:00:37.4]} 34...
Rhe8 {[%clk 0:01:10.7]} 35. Kf4 {[%clk 0:00:32]} 35... Rd4+ {[%clk 0:01:09.4]}
36. Kg3 {[%clk 0:00:31.7]} 36... Re3+ {[%clk 0:01:09.9]} 37. Kg2 {[%clk
0:00:31.7]} 37... f4 {[%clk 0:01:09.9]} 38. h5 {[%clk 0:00:30.4]} 38... Kg5
{[%clk 0:01:09.5]} 39. Bxf7 {[%clk 0:00:28.8]} 39... Rdxd3 {[%clk 0:01:09]} 0-1

[Event "Early-Titled-Tuesday-Blitz-April-23-2024"]
[Site "Chess.com"]
[Date "2024.04.23"]
[Round "1"]
[White "RamonManon0g"]
[Black "samidescalona2002"]
[Result "1-0"]
[WhiteElo "2453"]
[BlackElo "2744"]
[TimeControl "180+1"]
[EndTime "8:06:13 PDT"]
[Termination "RamonManon0g won by resignation"]

1. e4 {[%clk 0:02:59.6]} 1... c5 {[%clk 0:02:54.7]} 2. Nf3 {[%clk 0:02:59.1]}
2... d6 {[%clk 0:02:53.1]} 3. d4 {[%clk 0:02:56.2]} 3... cxd4 {[%clk 0:02:53.4]}
4. Nxd4 {[%clk 0:02:57.1]} 4... Nf6 {[%clk 0:02:53.6]} 5. Nc3 {[%clk 0:02:57.1]}
5... Nc6 {[%clk 0:02:54.5]} 6. Nxc6 {[%clk 0:02:55.4]} 6... bxc6 {[%clk
0:02:54.2]} 7. Bc4 {[%clk 0:02:56.3]} 7... Qc7 {[%clk 0:02:51.2]} 8. O-O {[%clk
0:02:52.6]} 8... g6 {[%clk 0:02:51.7]} 9. Bg5 {[%clk 0:02:49]} 9... Bg7 {[%clk
0:02:51.4]} 10. Qd2 {[%clk 0:02:47.4]} 10... O-O {[%clk 0:02:51.5]} 11. Bh6
{[%clk 0:02:47.6]} 11... Rb8 {[%clk 0:02:51.7]} 12. Bxg7 {[%clk 0:02:47.6]}
12... Kxg7 {[%clk 0:02:52.4]} 13. Bb3 {[%clk 0:02:48]} 13... Nd7 {[%clk
0:02:49.1]} 14. f4 {[%clk 0:02:46.7]} 14... f6 {[%clk 0:02:44]} 15. Rae1 {[%clk
0:02:39.7]} 15... a5 {[%clk 0:02:41.5]} 16. Kh1 {[%clk 0:02:36]} 16... Ba6
{[%clk 0:02:38.7]} 17. Rf3 {[%clk 0:02:34.6]} 17... Nc5 {[%clk 0:02:34.7]} 18.
f5 {[%clk 0:02:26.8]} 18... g5 {[%clk 0:02:33.1]} 19. Qf2 {[%clk 0:02:02.8]}
19... Nd7 {[%clk 0:02:24.5]} 20. Ne2 {[%clk 0:01:33.8]} 20... c5 {[%clk
0:02:16.5]} 21. Rg3 {[%clk 0:01:33.5]} 21... Kh8 {[%clk 0:02:03.7]} 22. h4
{[%clk 0:01:28.2]} 22... c4 {[%clk 0:02:03.1]} 23. Ba4 {[%clk 0:01:27.9]} 23...
Nc5 {[%clk 0:01:51]} 24. b3 {[%clk 0:01:27.1]} 24... Nxe4 {[%clk 0:01:50.7]} 25.
Qe3 {[%clk 0:01:18.6]} 25... Nxg3+ {[%clk 0:01:50.5]} 26. Nxg3 {[%clk
0:01:15.1]} 26... cxb3 {[%clk 0:01:50.6]} 27. axb3 {[%clk 0:01:14.1]} 27... Rg8
{[%clk 0:01:43.3]} 28. h5 {[%clk 0:01:10.4]} 28... Rb4 {[%clk 0:01:33.2]} 29.
Qxe7 {[%clk 0:00:56.1]} 29... Qxe7 {[%clk 0:01:14.7]} 30. Rxe7 {[%clk 0:00:57]}
30... Bb7 {[%clk 0:00:53.2]} 31. c4 {[%clk 0:00:46.6]} 31... Rd8 {[%clk
0:00:41.5]} 32. h6 {[%clk 0:00:42.8]} 32... d5 {[%clk 0:00:42]} 33. Nh5 {[%clk
0:00:40.1]} 33... Rf8 {[%clk 0:00:37.4]} 34. Nxf6 {[%clk 0:00:36]} 1-0

[Event "Early-Titled-Tuesday-Blitz-April-23-2024"]
[Site "Chess.com"]
[Date "2024.04.23"]
[Round "1"]
[White "RandomNoob04"]
[Black "Arteler"]
[Result "1-0"]
[WhiteElo "2658"]
[BlackElo "2351"]
[TimeControl "180+1"]
[EndTime "8:06:17 PDT"]
[Termination "RandomNoob04 won by checkmate"]

1. e4 {[%clk 0:03:00.9]} 1... e5 {[%clk 0:02:59.8]} 2. d4 {[%clk 0:03:01]} 2...
exd4 {[%clk 0:02:57.5]} 3. Qxd4 {[%clk 0:03:01.9]} 3... d6 {[%clk 0:02:57.8]} 4.
Nc3 {[%clk 0:02:58.2]} 4... Nf6 {[%clk 0:02:57.5]} 5. Bg5 {[%clk 0:02:57.7]}
5... Be7 {[%clk 0:02:57.7]} 6. O-O-O {[%clk 0:02:57.7]} 6... O-O {[%clk
0:02:58.1]} 7. f3 {[%clk 0:02:56.2]} 7... Nc6 {[%clk 0:02:45.9]} 8. Qd2 {[%clk
0:02:53.5]} 8... a6 {[%clk 0:02:44.5]} 9. Bc4 {[%clk 0:02:51.2]} 9... b5 {[%clk
0:02:43.3]} 10. Bb3 {[%clk 0:02:07.6]} 10... Rb8 {[%clk 0:02:04.6]} 11. h4
{[%clk 0:02:02.8]} 11... a5 {[%clk 0:02:03]} 12. a4 {[%clk 0:01:40.6]} 12...
bxa4 {[%clk 0:01:50.8]} 13. Bxa4 {[%clk 0:01:40.3]} 13... Ne5 {[%clk 0:01:49.4]}
14. Qe2 {[%clk 0:01:33.7]} 14... Be6 {[%clk 0:01:42.5]} 15. f4 {[%clk
0:01:27.8]} 15... Nc4 {[%clk 0:01:02.9]} 16. f5 {[%clk 0:01:16.8]} 16... Nxb2
{[%clk 0:01:01.6]} 17. fxe6 {[%clk 0:01:17.3]} 17... Nxd1 {[%clk 0:01:02.1]} 18.
exf7+ {[%clk 0:01:17.8]} 18... Kh8 {[%clk 0:01:02.7]} 19. Qxd1 {[%clk
0:01:18.5]} 19... Rxf7 {[%clk 0:00:59.8]} 20. Nf3 {[%clk 0:01:14.3]} 20... Ng4
{[%clk 0:00:49.3]} 21. Qd5 {[%clk 0:01:05.6]} 21... Rf8 {[%clk 0:00:38.2]} 22.
Qe6 {[%clk 0:01:05.6]} 22... Bxg5+ {[%clk 0:00:24]} 23. hxg5 {[%clk 0:01:05.9]}
23... Qc8 {[%clk 0:00:13.8]} 24. Bd7 {[%clk 0:01:03.3]} 24... Qb7 {[%clk
0:00:10.4]} 25. Qxg4 {[%clk 0:01:02.4]} 25... Qb2+ {[%clk 0:00:09.3]} 26. Kd2
{[%clk 0:01:02.9]} 26... Qb4 {[%clk 0:00:05.4]} 27. Rxh7+ {[%clk 0:00:59.9]}
27... Kxh7 {[%clk 0:00:05.3]} 28. Qh5+ {[%clk 0:01:00.4]} 28... Kg8 {[%clk
0:00:05.4]} 29. Be6+ {[%clk 0:01:01.3]} 29... Rf7 {[%clk 0:00:04.2]} 30. Qxf7+
{[%clk 0:01:02.2]} 30... Kh7 {[%clk 0:00:04.3]} 31. Qh5# {[%clk 0:01:03.1]} 1-0

[Event "Early-Titled-Tuesday-Blitz-April-23-2024"]
[Site "Chess.com"]
[Date "2024.04.23"]
[Round "1"]
[White "ravengelic"]
[Black "dontcatchmeifyoucant"]
[Result "1-0"]
[WhiteElo "2642"]
[BlackElo "2318"]
[TimeControl "180+1"]
[EndTime "8:06:18 PDT"]
[Termination "ravengelic won by resignation"]

1. b3 {[%clk 0:03:00.9]} 1... Nf6 {[%clk 0:02:57.1]} 2. Bb2 {[%clk 0:03:01]}
2... e6 {[%clk 0:02:57.3]} 3. c4 {[%clk 0:02:59.2]} 3... Be7 {[%clk 0:02:56.9]}
4. g3 {[%clk 0:02:58.7]} 4... O-O {[%clk 0:02:56.2]} 5. Bg2 {[%clk 0:02:59.2]}
5... d5 {[%clk 0:02:56.9]} 6. e3 {[%clk 0:02:59.8]} 6... c5 {[%clk 0:02:56.4]}
7. Ne2 {[%clk 0:02:59.2]} 7... Nc6 {[%clk 0:02:56.4]} 8. O-O {[%clk 0:02:58.3]}
8... b6 {[%clk 0:02:56.5]} 9. d4 {[%clk 0:02:57.8]} 9... cxd4 {[%clk 0:02:45.2]}
10. Nxd4 {[%clk 0:02:53.5]} 10... Bb7 {[%clk 0:02:43.4]} 11. Nd2 {[%clk
0:02:49.9]} 11... Nxd4 {[%clk 0:02:35.2]} 12. Bxd4 {[%clk 0:02:47.8]} 12... Qd7
{[%clk 0:02:32.6]} 13. Qe2 {[%clk 0:02:38.4]} 13... dxc4 {[%clk 0:02:30]} 14.
Bxb7 {[%clk 0:02:39.3]} 14... Qxb7 {[%clk 0:02:30.3]} 15. Nxc4 {[%clk
0:02:39.3]} 15... Rfd8 {[%clk 0:02:25.9]} 16. Bxf6 {[%clk 0:02:32.9]} 16... Bxf6
{[%clk 0:02:25]} 17. Rad1 {[%clk 0:02:33.8]} 17... Qe7 {[%clk 0:02:19.4]} 18. e4
{[%clk 0:02:32.9]} 18... Bd4 {[%clk 0:02:15.6]} 19. e5 {[%clk 0:02:16.3]} 19...
Rd5 {[%clk 0:02:10.7]} 20. Kg2 {[%clk 0:02:11]} 20... Rad8 {[%clk 0:01:20.4]}
21. f4 {[%clk 0:02:08.9]} 21... h6 {[%clk 0:01:15.5]} 22. Qf3 {[%clk 0:02:07.4]}
22... Bc5 {[%clk 0:01:14.4]} 23. Rxd5 {[%clk 0:02:06.2]} 23... Rxd5 {[%clk
0:01:15.3]} 24. Rd1 {[%clk 0:02:06.1]} 24... Qd7 {[%clk 0:01:10.2]} 25. Rxd5
{[%clk 0:02:05.2]} 25... exd5 {[%clk 0:01:10.5]} 26. Nb2 {[%clk 0:02:00.3]}
26... Kf8 {[%clk 0:01:01.4]} 27. Nd3 {[%clk 0:02:00.7]} 27... Be7 {[%clk
0:00:42.2]} 28. f5 {[%clk 0:01:58.9]} 28... Qc6 {[%clk 0:00:29.5]} 29. e6 {[%clk
0:01:50.8]} 29... Qc2+ {[%clk 0:00:24.5]} 30. Kh3 {[%clk 0:01:49.8]} 30... Qc6
{[%clk 0:00:08.5]} 31. Ne5 {[%clk 0:01:40.9]} 31... Qb5 {[%clk 0:00:04.3]} 32.
Nxf7 {[%clk 0:01:38.3]} 32... Bf6 {[%clk 0:00:04.2]} 33. Nh8 {[%clk 0:01:34.1]}
33... Qc6 {[%clk 0:00:03.2]} 34. Ng6+ {[%clk 0:01:35]} 34... Ke8 {[%clk
0:00:03.3]} 35. Nf4 {[%clk 0:01:35.1]} 35... Qc2 {[%clk 0:00:01.7]} 36. Qxd5
{[%clk 0:01:32.6]} 36... Kf8 {[%clk 0:00:01.7]} 37. Ng6+ {[%clk 0:01:27.7]}
37... Kg8 {[%clk 0:00:02.1]} 38. e7+ {[%clk 0:01:28.1]} 38... Kh7 {[%clk
0:00:01.8]} 39. Qg8+ {[%clk 0:01:26.4]} 1-0

[Event "Early-Titled-Tuesday-Blitz-April-23-2024"]
[Site "Chess.com"]
[Date "2024.04.23"]
[Round "1"]
[White "colegiodemadrid"]
[Black "DominguezOnYoutube"]
[Result "0-1"]
[WhiteElo "2528"]
[BlackElo "2937"]
[TimeControl "180+1"]
[EndTime "8:06:21 PDT"]
[Termination "DominguezOnYoutube won on time"]

1. e4 {[%clk 0:02:55.6]} 1... c5 {[%clk 0:02:58.3]} 2. Nf3 {[%clk 0:02:55.3]}
2... d6 {[%clk 0:02:57.5]} 3. d4 {[%clk 0:02:55.5]} 3... cxd4 {[%clk 0:02:57.8]}
4. Nxd4 {[%clk 0:02:53.1]} 4... Nf6 {[%clk 0:02:58.5]} 5. Nc3 {[%clk 0:02:53.4]}
5... a6 {[%clk 0:02:58.7]} 6. Bg5 {[%clk 0:02:53.9]} 6... Nbd7 {[%clk
0:02:58.1]} 7. f4 {[%clk 0:02:54.1]} 7... Qc7 {[%clk 0:02:55.2]} 8. Qf3 {[%clk
0:02:51.4]} 8... e6 {[%clk 0:02:52.2]} 9. O-O-O {[%clk 0:02:50.1]} 9... Be7
{[%clk 0:02:48.6]} 10. Bd3 {[%clk 0:02:49.9]} 10... b5 {[%clk 0:02:46.7]} 11.
Rhe1 {[%clk 0:02:49.3]} 11... Bb7 {[%clk 0:02:46.6]} 12. Qg3 {[%clk 0:02:49.2]}
12... O-O-O {[%clk 0:02:43.5]} 13. Bxf6 {[%clk 0:02:48]} 13... Nxf6 {[%clk
0:02:41.2]} 14. Qxg7 {[%clk 0:02:45.9]} 14... Rdf8 {[%clk 0:02:39.4]} 15. e5
{[%clk 0:02:28.1]} 15... Rhg8 {[%clk 0:02:26.4]} 16. Qh6 {[%clk 0:02:06.4]}
16... dxe5 {[%clk 0:02:25.9]} 17. fxe5 {[%clk 0:02:05.9]} 17... Ng4 {[%clk
0:02:20.4]} 18. Qh5 {[%clk 0:02:06]} 18... Nf2 {[%clk 0:02:15.1]} 19. Bxh7
{[%clk 0:01:32.5]} 19... Rxg2 {[%clk 0:02:06.9]} 20. Ncxb5 {[%clk 0:01:15.7]}
20... axb5 {[%clk 0:01:53.2]} 21. Nxb5 {[%clk 0:01:16.6]} 21... Qc5 {[%clk
0:01:40.1]} 22. Nd6+ {[%clk 0:01:11.4]} 22... Bxd6 {[%clk 0:01:39.9]} 23. Rxd6
{[%clk 0:01:08.7]} 23... Ne4 {[%clk 0:01:33]} 24. Bxe4 {[%clk 0:00:28]} 24...
Bxe4 {[%clk 0:01:32.3]} 25. Re2 {[%clk 0:00:28.6]} 25... Bxc2 {[%clk 0:00:47.4]}
26. Rxg2 {[%clk 0:00:01.7]} 26... Bg6+ {[%clk 0:00:46.1]} 27. Kd1 {[%clk
0:00:02.2]} 27... Bxh5+ {[%clk 0:00:45.6]} 0-1

[Event "Early-Titled-Tuesday-Blitz-April-23-2024"]
[Site "Chess.com"]
[Date "2024.04.23"]
[Round "1"]
[White "Nikita_Klepikov"]
[Black "jk13"]
[Result "0-1"]
[WhiteElo "2367"]
[BlackElo "2676"]
[TimeControl "180+1"]
[EndTime "8:06:21 PDT"]
[Termination "jk13 won on time"]

1. e4 {[%clk 0:03:00.9]} 1... e5 {[%clk 0:02:59.9]} 2. Nf3 {[%clk 0:03:00.5]}
2... Nc6 {[%clk 0:02:59.7]} 3. Bb5 {[%clk 0:03:00]} 3... a6 {[%clk 0:02:59.3]}
4. Ba4 {[%clk 0:02:59.8]} 4... Nf6 {[%clk 0:02:59.6]} 5. Qe2 {[%clk 0:02:59.1]}
5... b5 {[%clk 0:02:59.9]} 6. Bb3 {[%clk 0:02:58.7]} 6... Bc5 {[%clk 0:03:00.8]}
7. c3 {[%clk 0:02:57.8]} 7... O-O {[%clk 0:03:00.6]} 8. d3 {[%clk 0:02:56.5]}
8... Re8 {[%clk 0:02:58.7]} 9. Bg5 {[%clk 0:02:53.1]} 9... h6 {[%clk 0:02:53.3]}
10. Bh4 {[%clk 0:02:51.7]} 10... Be7 {[%clk 0:02:52.4]} 11. Nbd2 {[%clk
0:02:40.9]} 11... d6 {[%clk 0:02:52.8]} 12. O-O {[%clk 0:02:21.1]} 12... Nh5
{[%clk 0:02:52]} 13. Bg3 {[%clk 0:02:16.5]} 13... Nxg3 {[%clk 0:02:50.2]} 14.
fxg3 {[%clk 0:02:03.4]} 14... Bf6 {[%clk 0:02:51.1]} 15. a4 {[%clk 0:01:51]}
15... Bd7 {[%clk 0:02:47.3]} 16. axb5 {[%clk 0:01:34.4]} 16... axb5 {[%clk
0:02:47.1]} 17. Bd5 {[%clk 0:01:33.1]} 17... Rxa1 {[%clk 0:02:37.1]} 18. Rxa1
{[%clk 0:01:33]} 18... Ne7 {[%clk 0:02:38]} 19. Bb3 {[%clk 0:00:59.8]} 19... c6
{[%clk 0:02:23.6]} 20. Nf1 {[%clk 0:00:49.8]} 20... d5 {[%clk 0:01:57.2]} 21.
Ne3 {[%clk 0:00:39.1]} 21... Be6 {[%clk 0:01:56.3]} 22. exd5 {[%clk 0:00:22.3]}
22... cxd5 {[%clk 0:01:55.5]} 23. d4 {[%clk 0:00:19.7]} 23... e4 {[%clk
0:01:47.7]} 24. Nd2 {[%clk 0:00:14.5]} 24... b4 {[%clk 0:01:36.6]} 25. Ng4
{[%clk 0:00:11.1]} 25... Bxg4 {[%clk 0:01:25.3]} 26. Qxg4 {[%clk 0:00:12]} 26...
bxc3 {[%clk 0:01:24.3]} 27. bxc3 {[%clk 0:00:12.9]} 27... Qc7 {[%clk 0:01:23.1]}
28. Rc1 {[%clk 0:00:12.1]} 28... Bxd4+ {[%clk 0:01:22.3]} 29. Kh1 {[%clk
0:00:08.2]} 29... Be3 {[%clk 0:01:20.2]} 30. Qe2 {[%clk 0:00:07.5]} 30... Bb6
{[%clk 0:01:06.4]} 31. Nf1 {[%clk 0:00:02.5]} 31... Qc5 {[%clk 0:01:01.2]} 0-1

[Event "Early-Titled-Tuesday-Blitz-April-23-2024"]
[Site "Chess.com"]
[Date "2024.04.23"]
[Round "1"]
[White "ShazilTheGOAT2006"]
[Black "Lupul_Cenusiu"]
[Result "1-0"]
[WhiteElo "2406"]
[BlackElo "2686"]
[TimeControl "180+1"]
[EndTime "8:06:22 PDT"]
[Termination "ShazilTheGOAT2006 won by resignation"]

1. e4 {[%clk 0:03:00.6]} 1... c6 {[%clk 0:02:59]} 2. d4 {[%clk 0:02:47.7]} 2...
d5 {[%clk 0:02:59.9]} 3. exd5 {[%clk 0:02:48.6]} 3... cxd5 {[%clk 0:03:00.3]} 4.
Bd3 {[%clk 0:02:49.3]} 4... Nc6 {[%clk 0:03:00.1]} 5. c3 {[%clk 0:02:50]} 5...
Nf6 {[%clk 0:03:00.2]} 6. h3 {[%clk 0:02:50]} 6... e5 {[%clk 0:02:59.5]} 7. dxe5
{[%clk 0:02:49.9]} 7... Nxe5 {[%clk 0:03:00.4]} 8. Nf3 {[%clk 0:02:50.4]} 8...
Nxd3+ {[%clk 0:02:56.3]} 9. Qxd3 {[%clk 0:02:51.3]} 9... Be7 {[%clk 0:02:53.4]}
10. O-O {[%clk 0:02:49.2]} 10... O-O {[%clk 0:02:54.1]} 11. Bg5 {[%clk
0:02:48.6]} 11... h6 {[%clk 0:02:52.9]} 12. Bh4 {[%clk 0:02:47.3]} 12... Be6
{[%clk 0:02:50.1]} 13. Nbd2 {[%clk 0:02:45.8]} 13... Qb6 {[%clk 0:02:42.8]} 14.
Rfe1 {[%clk 0:02:40.5]} 14... Rfe8 {[%clk 0:02:31.9]} 15. Nd4 {[%clk 0:02:38.7]}
15... Bd7 {[%clk 0:02:17.3]} 16. Rab1 {[%clk 0:02:23.9]} 16... Rad8 {[%clk
0:01:44.2]} 17. N2f3 {[%clk 0:02:14.8]} 17... Ne4 {[%clk 0:01:36.3]} 18. Bxe7
{[%clk 0:02:15]} 18... Rxe7 {[%clk 0:01:37.2]} 19. Nd2 {[%clk 0:02:15.1]} 19...
Rde8 {[%clk 0:01:32.2]} 20. Nxe4 {[%clk 0:01:49.1]} 20... dxe4 {[%clk
0:01:32.5]} 21. Qg3 {[%clk 0:01:49]} 21... Qa5 {[%clk 0:01:25.2]} 22. a3 {[%clk
0:01:48.3]} 22... Bb5 {[%clk 0:01:18.5]} 23. Nf5 {[%clk 0:01:41.3]} 23... f6
{[%clk 0:01:10.5]} 24. Rxe4 {[%clk 0:01:17.4]} 24... Rc7 {[%clk 0:00:25.4]} 25.
Rg4 {[%clk 0:01:17]} 25... g5 {[%clk 0:00:12.9]} 26. h4 {[%clk 0:01:16.6]} 26...
Bd7 {[%clk 0:00:10.9]} 27. Nxh6+ {[%clk 0:01:11.3]} 27... Kh7 {[%clk 0:00:11.3]}
28. hxg5 {[%clk 0:01:08.1]} 28... Bxg4 {[%clk 0:00:11.4]} 29. Nxg4 {[%clk
0:01:08.8]} 29... fxg5 {[%clk 0:00:10.2]} 30. Nf6+ {[%clk 0:01:08.4]} 30... Kg6
{[%clk 0:00:07]} 31. Nxe8 {[%clk 0:01:08.6]} 31... Rf7 {[%clk 0:00:07.4]} 32.
Re1 {[%clk 0:01:04.8]} 32... Qd8 {[%clk 0:00:06.2]} 33. Nd6 {[%clk 0:01:02.2]}
33... Rf4 {[%clk 0:00:05.3]} 34. Qd3+ {[%clk 0:01:01.3]} 34... Kg7 {[%clk
0:00:05.1]} 35. Nf5+ {[%clk 0:01:00.5]} 1-0